bitfinex/quotes_BTCUSD_20230403
["timestamp","ask_amount","ask_price","bid_price","bid_amount"]
[1680552230096,0.90761737,28046.0,28043.0,0.00018]
[1680552230097,0.08491512,28044.0,28043.0,0.00018]
[1680552230322,1.81720655,28044.0,28036.0,0.08536234]
[1680552230554,0.86048695,28043.0,28036.0,0.08518234]
[1680552230789,0.016047,28041.0,28036.0,0.08536234]
[1680552231021,0.17792281,28040.0,28036.0,0.35]
[1680552231221,0.052933,28039.0,28036.0,0.35018]
[1680552231453,0.016049,28039.0,28036.0,0.00018]
[1680552231715,0.016049,28039.0,28035.0,0.08536234]
[1680552231939,0.016049,28039.0,28036.0,0.35]
[1680552232165,0.016049,28039.0,28036.0,0.35018]
[1680552232402,0.035232,28038.0,28036.0,0.00018]
[1680552232630,0.016049,28038.0,28035.0,0.43536234]
[1680552232855,0.016049,28038.0,28035.0,0.35018]
[1680552233827,0.028049,28038.0,28035.0,0.00018]
[1680552234745,0.028049,28038.0,28034.0,0.45626234]
[1680552234979,0.016049,28038.0,28034.0,0.37108]
[1680552235204,0.028049,28038.0,28034.0,0.37108]
[1680552235432,0.016049,28038.0,28034.0,0.37108]
[1680552235652,0.022049,28038.0,28034.0,0.37108]
[1680552235876,0.022049,28038.0,28034.0,0.02108]
[1680552236758,0.006,28038.0,28034.0,0.46760262]
[1680552236977,0.006,28038.0,28035.0,0.022803]
[1680552237408,0.006,28038.0,28035.0,0.372803]
[1680552237601,0.006,28038.0,28036.0,0.021833]
[1680552238092,0.012,28038.0,28036.0,0.021833]
[1680552238535,0.016049,28039.0,28036.0,0.021833]
[1680552238792,0.019,28038.0,28036.0,0.021833]
[1680552239457,0.016049,28039.0,28036.0,0.022013]
[1680552239676,0.035049,28039.0,28035.0,0.35018]
[1680552240359,0.04375444,28039.0,28035.0,0.35018]
[1680552240586,0.02475444,28039.0,28035.0,0.00018]
[1680552240808,0.019,28038.0,28034.0,0.71760262]
[1680552241032,0.016049,28038.0,28034.0,0.02108]
[1680552241230,0.016049,28038.0,28034.0,0.0209]
[1680552242257,0.022049,28038.0,28034.0,0.0209]
[1680552242539,0.016049,28038.0,28034.0,0.0209]
[1680552243091,0.034072,28037.0,28034.0,0.0209]
[1680552243348,0.01605,28036.0,28034.0,0.0209]
[1680552243621,0.034641,28035.0,28034.0,0.0209]
[1680552243918,0.01605,28036.0,28034.0,0.0209]
[1680552244423,0.03505,28036.0,28034.0,0.03120377]
[1680552245784,0.17694681,28036.0,28034.0,0.03120377]
[1680552246019,0.39117956,28035.0,28034.0,0.03120377]
[1680552246247,0.084622,28035.0,28034.0,0.03120377]
[1680552246738,0.434622,28035.0,28034.0,0.03120377]
[1680552247443,0.461622,28035.0,28034.0,0.0209]
[1680552247926,0.434622,28035.0,28034.0,0.0209]
[1680552248173,0.461622,28035.0,28034.0,0.0209]
[1680552248658,0.58472656,28035.0,28034.0,0.0209]
[1680552248891,0.461622,28035.0,28034.0,0.0209]
[1680552249343,0.78933256,28035.0,28034.0,0.0209]
[1680552249576,0.81633256,28035.0,28034.0,0.0209]
[1680552249766,0.78933256,28035.0,28034.0,0.0209]
[1680552249993,0.81633256,28035.0,28034.0,0.0209]
[1680552250253,0.97686712,28035.0,28034.0,0.0209]
[1680552250702,0.81633256,28035.0,28034.0,0.0209]
[1680552250922,0.78933256,28035.0,28034.0,0.0209]
[1680552251144,0.81633256,28035.0,28034.0,0.0209]
[1680552252270,0.78933256,28035.0,28034.0,0.0209]
[1680552252506,0.46633256,28035.0,28034.0,0.0209]
[1680552252732,0.43423056,28035.0,28034.0,0.0209]
[1680552253377,0.43423056,28035.0,28034.0,0.03079915]
[1680552255622,0.07952,28035.0,28034.0,0.03079915]
[1680552255823,0.027,28035.0,28034.0,0.03079915]
[1680552256761,0.01605,28037.0,28030.0,0.24806235]
[1680552256984,0.019,28035.0,28030.0,0.60277291]
[1680552257205,0.019,28035.0,28031.0,0.022586]
[1680552257206,0.016052,28034.0,28031.0,0.022586]
[1680552257421,0.019,28035.0,28031.0,0.022586]
[1680552257648,0.016052,28034.0,28031.0,0.022586]
[1680552258552,0.016052,28034.0,28030.0,0.24806235]
[1680552258771,0.016052,28034.0,28031.0,0.001]
[1680552258992,0.016052,28034.0,28030.0,0.24806235]
[1680552259224,0.017052,28034.0,28031.0,0.003]
[1680552259452,0.016052,28034.0,28031.0,0.01160161]
[1680552259683,0.016052,28034.0,28031.0,0.01260161]
[1680552259903,0.016052,28034.0,28032.0,0.022392]
[1680552260353,0.016052,28034.0,28031.0,0.01160161]
[1680552261027,0.016052,28034.0,28031.0,0.01260161]
[1680552262382,0.016051,28035.0,28031.0,0.01260161]
[1680552264148,0.016051,28035.0,28031.0,0.01160161]
[1680552264414,0.016051,28035.0,28031.0,0.01260161]
[1680552265296,0.032609,28038.0,28031.0,0.01260161]
[1680552265518,0.00921544,28039.0,28031.0,0.89568217]
[1680552265749,0.00870544,28039.0,28033.0,0.0846]
[1680552265978,0.00870544,28039.0,28034.0,0.022608]
[1680552266213,0.00870544,28039.0,28035.0,0.35471056]
[1680552266455,0.00870544,28039.0,28037.0,0.63723]
[1680552266685,0.00870544,28039.0,28038.0,0.74456756]
[1680552267552,0.01070544,28039.0,28038.0,1.20746756]
[1680552268036,0.00870544,28039.0,28038.0,1.21196756]
[1680552268265,0.01070544,28039.0,28038.0,1.21596756]
[1680552268487,0.00870544,28039.0,28038.0,1.21196756]
[1680552268709,0.01070544,28039.0,28038.0,1.91596756]
[1680552269802,0.01070544,28039.0,28038.0,1.89813556]
[1680552270025,0.01070544,28039.0,28038.0,1.91596756]
[1680552270467,0.01070544,28039.0,28038.0,1.89813556]
[1680552270703,0.01070544,28039.0,28038.0,1.88963556]
[1680552271592,0.01070544,28039.0,28038.0,0.81533556]
[1680552272096,0.00870544,28039.0,28038.0,0.81133556]
[1680552272319,0.01070544,28039.0,28038.0,0.81533556]
[1680552273216,0.00870544,28039.0,28038.0,0.81133556]
[1680552273436,0.01070544,28039.0,28038.0,0.81533556]
[1680552274360,0.00922612,28039.0,28038.0,0.83012879]
[1680552275289,0.00775736,28039.0,28038.0,0.83032879]
[1680552275519,0.00775736,28039.0,28038.0,0.84816079]
[1680552275738,0.00775736,28039.0,28038.0,1.22246079]
[1680552275967,0.00775736,28039.0,28038.0,1.92246079]
[1680552276427,0.00605605,28039.0,28038.0,1.93096079]
[1680552276653,0.00051,28047.0,28040.0,0.3743]
[1680552276883,0.00051,28047.0,28042.0,0.19612]
[1680552277121,0.00051,28047.0,28043.0,0.37726556]
[1680552277354,0.00051,28047.0,28045.0,0.35]
[1680552277579,0.00051,28047.0,28046.0,0.022435]
[1680552278462,0.00051,28047.0,28045.0,0.02115]
[1680552279140,0.00051,28047.0,28045.0,0.02615]
[1680552279368,0.00051,28047.0,28046.0,0.022916]
[1680552279659,0.00051,28047.0,28045.0,0.027392]
[1680552279877,0.00051,28047.0,28046.0,0.0215]
[1680552280543,0.00051,28047.0,28044.0,0.35]
[1680552280544,0.00251,28047.0,28045.0,0.022129]
[1680552280766,0.00051,28047.0,28045.0,0.022129]
[1680552280984,0.00251,28047.0,28045.0,0.022129]
[1680552281208,0.00251,28047.0,28046.0,0.35471056]
[1680552281436,0.00251,28047.0,28046.0,1.10189356]
[1680552281437,0.00164559,28047.0,28046.0,1.10189356]
[1680552281655,0.00140559,28047.0,28046.0,1.10183356]
[1680552281843,0.42165964,28049.0,28046.0,1.10183356]
[1680552282092,0.42114964,28049.0,28047.0,0.023023]
[1680552282334,0.42114964,28049.0,28048.0,0.35471056]
[1680552282563,0.42165964,28049.0,28048.0,0.35471056]
[1680552283005,0.42365964,28049.0,28048.0,0.37820656]
[1680552283227,0.42165964,28049.0,28048.0,0.37820656]
[1680552283659,0.42965964,28049.0,28048.0,0.37920656]
[1680552283891,0.42165964,28049.0,28048.0,0.37820656]
[1680552284841,0.42165964,28049.0,28048.0,0.38320656]
[1680552285059,0.42165964,28049.0,28048.0,0.37820656]
[1680552285285,0.42914964,28049.0,28048.0,0.38830656]
[1680552285505,0.42114964,28049.0,28048.0,0.38730656]
[1680552285944,0.42314964,28049.0,28048.0,0.38730656]
[1680552286162,0.42114964,28049.0,28048.0,0.38730656]
[1680552286419,0.42914964,28049.0,28048.0,0.38830656]
[1680552287091,0.42914964,28049.0,28048.0,0.033596]
[1680552293870,0.57104645,28049.0,28048.0,0.033596]
[1680552294107,0.42914964,28049.0,28048.0,0.0322]
[1680552301979,0.42914964,28049.0,28048.0,0.0332]
[1680552304515,0.42907445,28049.0,28048.0,0.04502738]
[1680552305450,0.42907445,28049.0,28048.0,0.02292738]
[1680552305703,0.42907445,28049.0,28048.0,0.04618038]
[1680552307334,0.57097126,28049.0,28048.0,0.04618038]
[1680552307577,1.00439901,28049.0,28048.0,0.02292738]
[1680552307817,2.28761973,28049.0,28048.0,0.01382738]
[1680552308046,0.35,28048.0,28037.0,0.00018]
[1680552308326,0.100845,28045.0,28038.0,1.05471056]
[1680552308558,0.14189681,28044.0,28038.0,1.05489056]
[1680552308795,0.016047,28043.0,28038.0,1.05489056]
[1680552309033,0.14189681,28042.0,28038.0,1.05489056]
[1680552309265,0.14189681,28042.0,28038.0,0.70018]
[1680552309266,0.016048,28041.0,28038.0,0.70018]
[1680552309509,0.016558,28041.0,28038.0,0.70589091]
[1680552309969,0.00051,28041.0,28039.0,0.35]
[1680552310196,0.016558,28041.0,28037.0,0.00018]
[1680552310422,0.017048,28041.0,28037.0,1.05471056]
[1680552310654,0.001,28041.0,28037.0,1.05471056]
[1680552310938,0.001,28041.0,28038.0,0.16154955]
[1680552311646,0.008,28041.0,28039.0,0.001]
[1680552311874,0.101357,28042.0,28038.0,0.16154955]
[1680552312098,0.001,28041.0,28038.0,0.16154955]
[1680552312542,0.101357,28043.0,28038.0,0.16154955]
[1680552312767,0.008,28041.0,28039.0,0.001]
[1680552313040,0.1211203,28043.0,28038.0,0.16154955]
[1680552313041,0.1050733,28043.0,28038.0,0.16154955]
[1680552313340,0.001,28041.0,28038.0,0.16154955]
[1680552313618,0.001,28041.0,28036.0,0.43518234]
[1680552313888,0.15894381,28041.0,28036.0,0.7898929]
[1680552314241,0.15945381,28041.0,28036.0,0.7898929]
[1680552314495,0.18703759,28041.0,28036.0,0.35]
[1680552314729,0.18603759,28041.0,28036.0,0.43518234]
[1680552314954,0.04414078,28041.0,28036.0,0.43518234]
[1680552315165,0.024047,28041.0,28039.0,0.001]
[1680552315410,0.016047,28041.0,28038.0,0.0144]
[1680552315629,0.119805,28040.0,28038.0,0.0144]
[1680552315856,0.052295,28039.0,28038.0,0.0144]
[1680552316138,0.051628,28039.0,28038.0,0.0144]
[1680552316365,0.016049,28039.0,28038.0,0.0144]
[1680552316603,0.054237,28039.0,28038.0,0.0154]
[1680552316821,0.016049,28039.0,28038.0,0.0154]
[1680552317050,0.016049,28039.0,28038.0,0.001]
[1680552317300,0.037437,28039.0,28038.0,0.001]
[1680552317533,0.0689315,28039.0,28034.0,0.21295584]
[1680552317769,0.0689315,28039.0,28033.0,0.17054467]
[1680552317770,0.19539131,28039.0,28038.0,0.001]
[1680552317998,0.0691215,28039.0,28033.0,0.21295584]
[1680552318222,0.038049,28039.0,28038.0,0.001]
[1680552318441,0.052478,28039.0,28033.0,0.08518234]
[1680552318663,0.16594581,28039.0,28034.0,0.001]
[1680552318886,0.15845581,28039.0,28033.0,0.08518234]
[1680552319107,0.02753528,28038.0,28033.0,0.08518234]
[1680552319334,0.16943209,28038.0,28033.0,0.08518234]
[1680552319559,0.02804528,28038.0,28033.0,0.08518234]
[1680552319751,0.016049,28039.0,28033.0,0.08518234]
[1680552320020,0.15794581,28039.0,28033.0,0.08518234]
[1680552320234,0.15845581,28039.0,28033.0,0.08518234]
[1680552320464,0.0846,28035.0,28034.0,0.001]
[1680552320711,0.12889,28035.0,28030.0,0.411426]
[1680552320906,0.14189681,28034.0,28033.0,0.001]
[1680552321170,0.14189681,28034.0,28031.0,0.35471056]
[1680552321171,0.036067,28034.0,28031.0,0.35471056]
[1680552321418,0.0846,28035.0,28033.0,0.001]
[1680552321631,0.036795,28034.0,28031.0,0.35471056]
[1680552321857,0.0856,28035.0,28031.0,0.35471056]
[1680552322080,0.0846,28035.0,28031.0,0.35471056]
[1680552322304,0.021,28034.0,28031.0,0.35571056]
[1680552323221,0.0846,28035.0,28031.0,0.35471056]
[1680552323448,0.1056,28035.0,28031.0,0.35571056]
[1680552323758,0.0846,28035.0,28031.0,0.35471056]
[1680552323976,0.021,28034.0,28031.0,0.35571056]
[1680552324199,0.0846,28035.0,28031.0,0.35471056]
[1680552324431,0.1056,28035.0,28031.0,0.35571056]
[1680552328470,0.021,28035.0,28031.0,0.35571056]
[1680552328698,0.021,28035.0,28032.0,0.372108]
[1680552328932,0.021,28035.0,28033.0,0.021594]
[1680552329166,0.021,28035.0,28034.0,0.02055]
[1680552329379,0.021,28035.0,28033.0,0.021952]
[1680552329814,0.021,28035.0,28033.0,0.039787]
[1680552330082,0.08531,28038.0,28034.0,0.02102]
[1680552330307,0.001,28035.0,28033.0,0.017835]
[1680552330534,0.001,28035.0,28034.0,0.020655]
[1680552330772,0.08531,28038.0,28034.0,0.020655]
[1680552331007,0.00851,28038.0,28035.0,0.35471056]
[1680552331233,0.008,28038.0,28036.0,0.371571]
[1680552331507,0.00051,28041.0,28037.0,0.020961]
[1680552331936,0.00051,28042.0,28037.0,0.020961]
[1680552332147,0.00051,28042.0,28036.0,0.367833]
[1680552332390,0.05795133,28040.0,28036.0,0.72254356]
[1680552332613,0.05795133,28040.0,28037.0,0.021012]
[1680552332843,0.05795133,28040.0,28037.0,0.022012]
[1680552333063,0.05795133,28040.0,28037.0,0.021012]
[1680552333297,0.00051,28042.0,28037.0,0.021012]
[1680552333528,0.00051,28043.0,28036.0,0.72254356]
[1680552333756,0.001,28040.0,28036.0,0.73454356]
[1680552333978,0.00051,28042.0,28037.0,0.020597]
[1680552334225,0.00051,28042.0,28036.0,0.70471056]
[1680552334420,0.05794116,28039.0,28036.0,0.70471056]
[1680552334675,0.05794116,28039.0,28036.0,0.35471056]
[1680552334900,0.05794116,28039.0,28037.0,0.020814]
[1680552335088,0.05794116,28039.0,28036.0,0.35471056]
[1680552335320,0.14189681,28039.0,28034.0,0.39718]
[1680552335618,0.14189681,28039.0,28037.0,0.163]
[1680552335881,0.00051,28040.0,28037.0,0.163]
[1680552336160,0.016048,28041.0,28037.0,0.163]
[1680552336672,0.001,28039.0,28037.0,0.163]
[1680552337337,0.016048,28041.0,28037.0,0.163]
[1680552337556,0.017048,28041.0,28037.0,0.163]
[1680552337769,0.016048,28041.0,28037.0,0.163]
[1680552338893,0.001,28039.0,28037.0,0.163]
[1680552339151,0.016048,28041.0,28037.0,0.163]
[1680552339376,0.017048,28041.0,28037.0,0.163]
[1680552340058,0.016048,28041.0,28037.0,0.163]
[1680552340292,0.0405,28040.0,28037.0,0.163]
[1680552340512,0.001,28039.0,28037.0,0.163]
[1680552340744,0.032605,28042.0,28037.0,0.163]
[1680552340965,0.016048,28040.0,28037.0,0.163]
[1680552341187,0.038375,28039.0,28037.0,0.163]
[1680552341410,0.016048,28040.0,28037.0,0.163]
[1680552341640,0.038623,28039.0,28037.0,0.163]
[1680552341878,0.016048,28040.0,28037.0,0.163]
[1680552342318,0.017048,28040.0,28037.0,0.163]
[1680552342535,0.016048,28040.0,28037.0,0.163]
[1680552342751,0.037498,28039.0,28037.0,0.163]
[1680552343022,0.017048,28040.0,28037.0,0.163]
[1680552343251,0.016048,28040.0,28037.0,0.163]
[1680552343486,0.016048,28040.0,28034.0,0.00012]
[1680552343487,0.0848,28038.0,28033.0,0.00018]
[1680552343732,0.0848,28038.0,28031.0,1.0513]
[1680552343733,0.26430281,28037.0,28031.0,0.00018]
[1680552343966,0.26430281,28037.0,28031.0,0.70471056]
[1680552343967,0.22669681,28037.0,28031.0,0.70471056]
[1680552344190,0.22669681,28037.0,28031.0,0.35489056]
[1680552345306,0.22669681,28037.0,28033.0,0.017]
[1680552345545,0.0848,28037.0,28031.0,0.35489056]
[1680552345772,0.0848,28037.0,28031.0,0.35471056]
[1680552345773,0.22769681,28037.0,28031.0,0.35471056]
[1680552345998,0.22769681,28037.0,28031.0,0.35489056]
[1680552347783,0.22669681,28037.0,28031.0,0.35489056]
[1680552347999,0.22769681,28037.0,28031.0,0.35489056]
[1680552349345,0.05617033,28036.0,28031.0,0.35489056]
[1680552351167,0.05717033,28036.0,28031.0,0.35489056]
[1680552351390,0.05717033,28036.0,28031.0,0.4400729]
[1680552354058,0.07824736,28036.0,28032.0,0.00118]
[1680552354274,0.07024736,28036.0,28032.0,6e-05]
[1680552354507,0.037767,28035.0,28032.0,0.001]
[1680552354954,0.10029736,28036.0,28032.0,0.001]
[1680552355769,0.036467,28035.0,28032.0,0.001]
[1680552356255,0.036467,28035.0,28031.0,0.4400729]
[1680552356539,0.014,28035.0,28032.0,0.001]
[1680552357350,0.008,28035.0,28031.0,0.79667981]
[1680552357614,0.008,28035.0,28032.0,0.45537234]
[1680552357876,0.05617033,28036.0,28033.0,0.021497]
[1680552358140,0.014,28035.0,28032.0,0.08618234]
[1680552358423,0.014,28035.0,28033.0,0.021233]
[1680552358954,0.01605,28038.0,28033.0,0.021233]
[1680552359188,0.008,28035.0,28033.0,0.08518234]
[1680552359414,0.01605,28038.0,28032.0,0.56295584]
[1680552359415,0.0560904,28034.0,28032.0,0.56295584]
[1680552359631,0.0560904,28034.0,28033.0,0.022209]
[1680552359845,0.0560904,28034.0,28033.0,0.020209]
[1680552360065,0.0560904,28034.0,28033.0,0.022209]
[1680552360288,0.01605,28038.0,28033.0,0.020209]
[1680552360514,0.019,28034.0,28033.0,0.002]
[1680552360735,0.019,28034.0,28033.0,0.022651]
[1680552360970,0.019,28034.0,28033.0,0.10783334]
[1680552361194,0.019,28034.0,28033.0,0.19923334]
[1680552361649,0.01605,28038.0,28033.0,0.19723334]
[1680552361871,0.008,28034.0,28033.0,0.17758234]
[1680552362099,0.01605,28038.0,28033.0,0.19765034]
[1680552362373,0.019,28034.0,28033.0,0.17858234]
[1680552362610,0.00051,28040.0,28033.0,0.19693234]
[1680552362841,0.008,28034.0,28033.0,0.17758234]
[1680552363059,0.008,28034.0,28033.0,0.19883334]
[1680552363520,0.016049,28040.0,28033.0,0.54783334]
[1680552363757,0.016049,28040.0,28033.0,0.65435584]
[1680552363992,0.016049,28040.0,28033.0,0.52658234]
[1680552364222,0.016049,28040.0,28034.0,0.08518234]
[1680552364223,0.15794581,28040.0,28034.0,0.08518234]
[1680552364450,0.05617045,28039.0,28034.0,0.08518234]
[1680552364670,0.07221945,28039.0,28034.0,0.08518234]
[1680552364905,0.05617045,28039.0,28034.0,0.08518234]
[1680552365800,0.07517045,28039.0,28034.0,0.08718234]
[1680552366259,0.07568045,28039.0,28033.0,0.1277735]
[1680552366499,0.21757726,28039.0,28033.0,0.1277735]
[1680552367185,0.23362626,28039.0,28033.0,0.1277735]
[1680552367938,0.21462626,28039.0,28032.0,0.29813817]
[1680552368165,0.29547859,28039.0,28033.0,0.001]
[1680552368921,0.14189681,28038.0,28033.0,0.001]
[1680552369166,0.0846,28035.0,28033.0,0.001]
[1680552369401,0.036906,28034.0,28033.0,0.001]
[1680552370372,0.036906,28034.0,28030.0,0.3952]
[1680552370612,0.17880281,28034.0,28031.0,0.35471056]
[1680552370840,0.038822,28033.0,28031.0,0.35471056]
[1680552371068,0.037249,28034.0,28031.0,0.35471056]
[1680552372748,0.057249,28034.0,28031.0,0.35471056]
[1680552372983,0.038908,28033.0,28031.0,0.35471056]
[1680552373688,0.02,28034.0,28031.0,0.35471056]
[1680552373914,0.100651,28035.0,28031.0,0.35471056]
[1680552374153,0.02,28033.0,28031.0,0.35471056]
[1680552374384,0.0848,28034.0,28031.0,0.35471056]
[1680552374605,0.1048,28034.0,28031.0,0.35471056]
[1680552374837,0.0848,28034.0,28031.0,0.35471056]
[1680552375267,0.038257,28033.0,28031.0,0.35471056]
[1680552375272,0.058257,28033.0,28030.0,0.0209]
[1680552375500,0.138854,28032.0,28030.0,0.0209]
[1680552375733,0.038303,28031.0,28030.0,0.0209]
[1680552375969,0.086463,28031.0,28030.0,0.0209]
[1680552376485,0.171263,28031.0,28030.0,0.0209]
[1680552376889,0.1969203,28031.0,28030.0,0.0209]
[1680552377364,0.2169203,28031.0,28030.0,0.0209]
[1680552377567,0.1969203,28031.0,28030.0,0.0209]
[1680552377744,0.57863086,28031.0,28030.0,0.0209]
[1680552378508,0.57914086,28031.0,28030.0,0.0209]
[1680552379346,0.6092151,28031.0,28030.0,0.01532685]
[1680552379706,0.25399454,28031.0,28030.0,0.01532685]
[1680552380432,0.25399454,28031.0,28030.0,0.0097736]
[1680552381319,0.25399454,28031.0,28030.0,0.00424018]
[1680552382494,0.25399454,28031.0,28027.0,0.0209]
[1680552382769,0.0841,28029.0,28027.0,0.0209]
[1680552382998,0.016055,28028.0,28027.0,0.0209]
[1680552384358,0.07089158,28028.0,28027.0,0.0209]
[1680552384577,0.13432358,28028.0,28027.0,0.0209]
[1680552386875,0.09789158,28028.0,28027.0,0.0209]
[1680552391456,0.08183658,28028.0,28027.0,0.0209]
[1680552394024,0.08183658,28028.0,28027.0,1.13842156]
[1680552394257,0.08183658,28028.0,28027.0,1.14710156]
[1680552394488,0.08183658,28028.0,28027.0,1.27200156]
[1680552394736,0.08183658,28028.0,28027.0,1.35680156]
[1680552394983,0.08183658,28028.0,28027.0,1.48457506]
[1680552395225,0.00051,28035.0,28029.0,0.3743]
[1680552395462,0.016559,28038.0,28031.0,0.3743]
[1680552395714,0.00051,28038.0,28032.0,0.35471056]
[1680552395950,0.01605,28037.0,28032.0,0.36321056]
[1680552396164,0.01656,28037.0,28034.0,0.1244]
[1680552396391,0.05934781,28037.0,28034.0,0.1244]
[1680552398221,0.06334781,28037.0,28034.0,0.1244]
[1680552401866,0.039682,28036.0,28034.0,0.1244]
[1680552402098,0.016561,28036.0,28034.0,0.1244]
[1680552402337,0.016051,28036.0,28034.0,0.1244]
[1680552402552,0.016051,28036.0,28034.0,0.1264]
[1680552402787,0.016051,28036.0,28034.0,0.1244]
[1680552403020,0.005,28036.0,28034.0,0.1264]
[1680552403518,0.04274512,28035.0,28030.0,0.71302729]
[1680552403733,0.14689681,28036.0,28035.0,0.02775488]
[1680552403956,0.005,28036.0,28035.0,0.02775488]
[1680552404422,0.04858695,28036.0,28035.0,0.04913188]
[1680552404867,0.04858695,28036.0,28035.0,0.50577644]
[1680552405090,0.05558695,28036.0,28035.0,0.49844244]
[1680552405327,0.00051,28040.0,28035.0,0.51427644]
[1680552405551,0.30051,28043.0,28037.0,0.35]
[1680552406258,0.30051,28043.0,28037.0,0.70471056]
[1680552406471,0.04685468,28042.0,28038.0,0.37612556]
[1680552406693,0.04685468,28042.0,28039.0,0.019464]
[1680552406917,0.04685468,28042.0,28039.0,0.369464]
[1680552407159,0.04685468,28042.0,28040.0,0.02129]
[1680552407393,0.016045,28045.0,28040.0,0.02129]
[1680552407615,0.001,28043.0,28039.0,0.35]
[1680552407848,0.001,28043.0,28040.0,0.02077]
[1680552408074,0.004,28042.0,28039.0,0.020882]
[1680552408331,0.016045,28045.0,28039.0,0.020882]
[1680552408573,0.04470052,28042.0,28038.0,0.35471056]
[1680552408788,0.04470052,28042.0,28039.0,0.7201]
[1680552409009,0.04470052,28042.0,28040.0,0.019935]
[1680552409464,0.017045,28045.0,28040.0,0.019935]
[1680552409693,0.017045,28045.0,28039.0,0.709]
[1680552409915,0.15894181,28045.0,28039.0,0.709]
[1680552410147,0.15845181,28045.0,28039.0,0.7]
[1680552410364,0.004,28042.0,28039.0,0.7]
[1680552410589,0.04472639,28044.0,28042.0,0.0492]
[1680552411076,0.2026692,28044.0,28042.0,0.0492]
[1680552411311,0.037024,28043.0,28042.0,0.0492]
[1680552411521,0.037024,28043.0,28039.0,0.70318]
[1680552411522,0.085163,28043.0,28039.0,0.70318]
[1680552411743,0.387953,28042.0,28039.0,0.70018]
[1680552411982,0.085044,28041.0,28039.0,0.70018]
[1680552412211,0.036607,28040.0,28039.0,0.70018]
[1680552412433,0.052655,28040.0,28039.0,0.70018]
[1680552412668,0.137455,28040.0,28039.0,0.70018]
[1680552412894,0.137455,28040.0,28039.0,0.00018]
[1680552413135,0.137455,28040.0,28033.0,0.00018]
[1680552413471,0.14189681,28039.0,28033.0,0.00018]
[1680552413770,0.398149,28038.0,28033.0,0.00018]
[1680552413917,0.037786,28037.0,28033.0,0.00018]
[1680552414134,0.01605,28036.0,28033.0,0.70018]
[1680552414574,0.01605,28036.0,28033.0,0.70118]
[1680552414790,0.01605,28036.0,28033.0,0.70018]
[1680552415024,0.01905,28036.0,28033.0,0.70118]
[1680552415463,0.01605,28036.0,28033.0,0.70018]
[1680552416310,0.01905,28036.0,28033.0,0.70118]
[1680552416523,0.380697,28039.0,28033.0,0.70018]
[1680552416524,0.3165,28039.0,28033.0,0.70018]
[1680552416747,0.003,28036.0,28033.0,0.35118]
[1680552416956,0.003,28036.0,28033.0,0.001]
[1680552417405,0.01605,28037.0,28030.0,0.35018]
[1680552417621,0.14489681,28036.0,28032.0,0.2]
[1680552417852,0.003,28036.0,28032.0,0.00018]
[1680552418059,0.003,28036.0,28032.0,0.370941]
[1680552418271,0.003,28036.0,28033.0,0.022112]
[1680552418492,0.01605,28037.0,28033.0,0.022112]
[1680552418725,0.01605,28037.0,28032.0,0.35018]
[1680552419367,0.04913714,28036.0,28032.0,0.35018]
[1680552419584,0.04913714,28036.0,28033.0,0.021196]
[1680552419820,0.04913714,28036.0,28032.0,0.003]
[1680552420266,0.01605,28037.0,28031.0,0.35489056]
[1680552420505,0.003,28036.0,28031.0,0.35489056]
[1680552420726,0.01605,28037.0,28031.0,0.35489056]
[1680552420942,0.15794681,28037.0,28032.0,0.003]
[1680552421187,0.15794681,28037.0,28032.0,0.00018]
[1680552421418,0.19103395,28036.0,28034.0,0.0266]
[1680552421656,0.150605,28035.0,28034.0,0.0266]
[1680552421870,0.17905921,28035.0,28034.0,0.0266]
[1680552422095,0.17905921,28035.0,28031.0,0.009]
[1680552422327,0.037982,28034.0,28027.0,0.02108]
[1680552422551,0.14189681,28033.0,28027.0,0.37579056]
[1680552422773,0.016053,28032.0,28027.0,0.37579056]
[1680552422978,0.15794981,28032.0,28027.0,0.37579056]
[1680552423660,0.016053,28032.0,28027.0,0.37579056]
[1680552423886,0.016053,28032.0,28027.0,0.37879056]
[1680552424119,0.016053,28032.0,28027.0,0.37579056]
[1680552425230,0.016053,28032.0,28027.0,0.37879056]
[1680552426153,0.016053,28032.0,28028.0,0.021577]
[1680552426332,0.016053,28032.0,28028.0,0.021757]
[1680552426549,0.016053,28032.0,28028.0,0.00018]
[1680552427198,0.019053,28032.0,28028.0,0.00018]
[1680552427879,0.016053,28032.0,28028.0,0.00018]
[1680552428101,0.019053,28032.0,28028.0,0.00018]
[1680552428321,0.016053,28032.0,28028.0,0.00018]
[1680552428540,0.019053,28032.0,28028.0,0.00018]
[1680552428815,0.016053,28032.0,28028.0,0.00018]
[1680552429029,0.019053,28032.0,28028.0,0.00118]
[1680552429471,0.019053,28032.0,28028.0,0.022413]
[1680552429900,0.019053,28032.0,28028.0,0.00118]
[1680552430118,0.019053,28032.0,28028.0,0.022045]
[1680552430780,0.016053,28032.0,28028.0,0.021045]
[1680552430995,0.019053,28032.0,28028.0,0.021045]
[1680552431882,0.14189681,28031.0,28028.0,0.00018]
[1680552432101,0.43951056,28029.0,28023.0,0.0209]
[1680552432336,1.39987473,28030.0,28023.0,0.0209]
[1680552432337,0.1691,28024.0,28023.0,0.0209]
[1680552432601,1.18883937,28024.0,28023.0,0.0209]
[1680552432827,2.47381558,28024.0,28023.0,0.0209]
[1680552433050,2.77381558,28024.0,28023.0,0.0209]
[1680552433287,0.7243,28023.0,28021.0,0.0209]
[1680552433501,1.58328644,28022.0,28021.0,0.0209]
[1680552433744,1.58328644,28022.0,28020.0,0.0001]
[1680552433745,0.35,28021.0,28020.0,0.0001]
[1680552433988,0.35,28021.0,28018.0,0.0458864]
[1680552433989,2.99476864,28021.0,28018.0,0.0458864]
[1680552434248,0.5425,28019.0,28018.0,0.03101137]
[1680552434477,1.49053323,28019.0,28018.0,0.03101137]
[1680552434699,1.79053323,28019.0,28018.0,0.03101137]
[1680552434914,1.41623323,28019.0,28018.0,0.03101137]